bitfinex/quotes_BTCUSD_20250907
["timestamp","ask_amount","ask_price","bid_price","bid_amount"]
[1757237998809,0.55292891,111040.0,111030.0,0.25]
[1757237999904,0.39834297,111040.0,111030.0,0.36356481]
[1757238000106,0.39834297,111040.0,111030.0,0.34235599]
[1757238000316,0.40132297,111040.0,111030.0,0.54235599]
[1757238000720,0.40132297,111040.0,111030.0,0.45044]
[1757238000928,0.52013149,111030.0,111020.0,0.17598915]
[1757238001098,1.09273808,111030.0,111020.0,0.17598915]
[1757238001337,1.18465407,111030.0,111020.0,0.17598915]
[1757238001543,0.18014772,111020.0,111010.0,0.25]
[1757238001749,0.9120639,111020.0,111010.0,0.25]
[1757238002396,0.55908654,111010.0,111000.0,0.25284]
[1757238002568,0.56413654,111010.0,111000.0,0.25297971]
[1757238002724,0.75359784,111010.0,111000.0,0.24797971]
[1757238002929,0.78064989,111010.0,111000.0,0.24797971]
[1757238003156,1.13786786,111010.0,111000.0,0.24797971]
[1757238003599,1.22978385,111010.0,111000.0,0.24797971]
[1757238003797,0.18018018,111000.0,110990.0,0.25]
[1757238004017,0.90911842,111000.0,110990.0,0.25012601]
[1757238004233,0.91209842,111000.0,110990.0,0.25012601]
[1757238005154,0.91209842,111000.0,110990.0,0.25056601]
[1757238005155,0.57048712,111000.0,110990.0,0.25056601]
[1757238005368,0.56957712,111000.0,110990.0,0.25012601]
[1757238005564,0.57255712,111000.0,110990.0,0.25012601]
[1757238006014,0.57255712,111000.0,110990.0,0.25056601]
[1757238006154,0.37804582,111000.0,110990.0,0.25056601]
[1757238006358,0.18858452,111000.0,110990.0,0.25083601]
[1757238006576,0.56750712,111000.0,110990.0,0.25056601]
[1757238007246,0.57047712,111000.0,110990.0,0.25056601]
[1757238007449,0.57147712,111000.0,110990.0,0.25056601]
[1757238007648,0.56407278,111000.0,110990.0,0.25056601]
[1757238008608,0.56110278,111000.0,110990.0,0.25056601]
[1757238008809,0.56110278,111000.0,110990.0,0.40072601]
[1757238009413,0.58815355,111000.0,110990.0,0.40072601]
[1757238010018,0.58815355,111000.0,110990.0,0.51358082]
[1757238010216,0.002,111000.0,110990.0,1.48404723]
[1757238010431,0.18014844,111020.0,111010.0,0.17093882]
[1757238010631,0.18014844,111020.0,111010.0,0.48525685]
[1757238010835,0.18014844,111020.0,111010.0,0.48300481]
[1757238011346,0.40564323,111030.0,111020.0,0.02093882]
[1757238011664,0.18912103,111040.0,111030.0,0.17093882]
[1757238011833,0.37858233,111040.0,111030.0,0.41384481]
[1757238012045,0.40562147,111040.0,111030.0,0.41384481]
[1757238012271,0.37858233,111040.0,111030.0,0.41384481]
[1757238012477,0.37858233,111040.0,111030.0,0.44088396]
[1757238012675,0.37858233,111040.0,111030.0,0.29060396]
[1757238012878,0.37904651,111040.0,111030.0,0.44088396]
[1757238014147,0.37904651,111040.0,111030.0,0.45000703]
[1757238015511,0.37904651,111040.0,111030.0,0.44084396]
[1757238015727,0.18958521,111040.0,111030.0,0.44084396]
[1757238015936,0.18057945,111040.0,111030.0,1.02297545]
[1757238016307,0.18057945,111040.0,111030.0,1.02397545]
[1757238016464,0.18057945,111040.0,111030.0,1.07397545]
[1757238017828,0.18057945,111040.0,111030.0,1.07297545]
[1757238018035,0.18057945,111040.0,111030.0,1.07397545]
[1757238018425,0.18057945,111040.0,111030.0,0.89384396]
[1757238018628,0.18057945,111040.0,111030.0,1.29384396]
[1757238018838,0.18057945,111040.0,111030.0,1.30284242]
[1757238020089,0.18057945,111040.0,111030.0,1.15260242]
[1757238020228,0.18057945,111040.0,111030.0,1.30280242]
[1757238020620,0.18057945,111040.0,111030.0,1.30276242]
[1757238022437,0.18057945,111040.0,111030.0,1.15260242]
[1757238022631,0.18057945,111040.0,111030.0,1.30276242]
[1757238024538,0.18057945,111040.0,111030.0,1.30272242]
[1757238025323,0.18057945,111040.0,111030.0,1.15260242]
[1757238025527,0.18057945,111040.0,111030.0,1.30272242]
[1757238027523,0.18057945,111040.0,111030.0,1.27568327]
[1757238028846,0.18057945,111040.0,111030.0,1.12556327]
[1757238029050,0.18057945,111040.0,111030.0,1.27564327]
[1757238029412,0.18057945,111040.0,111030.0,1.12556327]
[1757238029615,0.18057945,111040.0,111030.0,1.27560327]
[1757238030260,0.37004075,111040.0,111030.0,1.27560327]
[1757238031314,0.37004075,111040.0,111030.0,1.45573476]
[1757238031315,0.18057945,111040.0,111030.0,1.45573476]
[1757238032095,0.18057945,111040.0,111030.0,1.27560327]
[1757238033610,0.00046418,111040.0,111030.0,1.79573476]
[1757238033787,0.00046418,111040.0,111030.0,2.05405476]
[1757238034576,0.00046418,111040.0,111030.0,2.08008567]
[1757238034814,0.00046418,111040.0,111030.0,2.07808567]
[1757238035018,0.00046418,111040.0,111030.0,2.08308567]
[1757238035248,0.00046418,111040.0,111030.0,2.08608567]
[1757238035839,0.00046418,111040.0,111030.0,1.93608567]
[1757238037857,0.13700333,111060.0,111050.0,0.45]
[1757238038060,0.13714248,111060.0,111050.0,0.76107599]
[1757238038268,0.13714248,111060.0,111050.0,0.76178599]
[1757238038686,0.14614662,111060.0,111050.0,0.76178599]
[1757238039119,0.14614662,111060.0,111050.0,0.76278599]
[1757238039321,0.14614662,111060.0,111050.0,0.76378599]
[1757238047165,0.14614662,111060.0,111050.0,0.76366599]
[1757238047300,0.14614662,111060.0,111050.0,0.94376504]
[1757238047501,0.14614662,111060.0,111050.0,0.76366599]
[1757238048434,0.14614662,111060.0,111050.0,1.09376504]
[1757238048627,0.33560792,111060.0,111050.0,1.09376504]
[1757238048826,0.14614662,111060.0,111050.0,1.09376504]
[1757238049207,0.14614662,111060.0,111050.0,0.91366599]
[1757238050206,0.13714248,111060.0,111050.0,1.09376504]
[1757238052420,0.00013915,111060.0,111050.0,1.11470386]
[1757238052561,0.18022198,111060.0,111050.0,1.51470386]
[1757238052765,0.18022198,111060.0,111050.0,1.11470386]
[1757238053403,0.18022198,111060.0,111050.0,1.51470386]
[1757238053814,0.18022198,111060.0,111050.0,1.36482386]
[1757238054019,0.36968328,111060.0,111050.0,1.33460481]
[1757238054618,0.36968328,111060.0,111050.0,1.18472481]
[1757238054848,0.36968328,111060.0,111050.0,0.93460481]
[1757238055782,0.55914458,111060.0,111050.0,0.73445481]
[1757238056052,0.56231458,111060.0,111050.0,0.88433481]
[1757238057201,0.56231458,111060.0,111050.0,0.73445481]
[1757238057439,0.56231458,111060.0,111050.0,0.88433481]
[1757238057660,0.56231458,111060.0,111050.0,0.73445481]
[1757238057860,0.75391588,111060.0,111050.0,0.07116]
[1757238058109,0.56445458,111060.0,111050.0,0.22104]
[1757238061463,0.56409596,111060.0,111050.0,0.22104]
[1757238066842,0.56409596,111060.0,111050.0,0.22004]
[1757238066988,0.56409596,111060.0,111050.0,0.21904]
[1757238067348,0.56409596,111060.0,111050.0,0.22004]
[1757238067551,0.56409596,111060.0,111050.0,0.22104]
[1757238068620,0.56409596,111060.0,111050.0,0.22004]
[1757238069036,0.18011527,111040.0,111030.0,0.06916]
[1757238069241,0.36939726,111040.0,111030.0,0.21904]
[1757238069457,0.37463726,111040.0,111030.0,0.21904]
[1757238070465,0.37463726,111040.0,111030.0,0.22104]
[1757238070867,0.37463726,111040.0,111030.0,0.22204]
[1757238071433,0.37463726,111040.0,111030.0,0.22004]
[1757238071874,0.37463726,111040.0,111030.0,0.22104]
[1757238089481,0.37463726,111040.0,111030.0,0.22148]
[1757238091062,0.37463726,111040.0,111030.0,0.22104]
[1757238096490,0.14873147,111040.0,111030.0,0.22302]
[1757238096698,0.33091674,111040.0,111030.0,0.22302]
[1757238099556,0.37146726,111040.0,111030.0,0.22302]
[1757238101867,0.37146726,111040.0,111030.0,0.22302]
[1757238102297,0.36939726,111040.0,111030.0,0.22604]
[1757238104563,0.18011527,111040.0,111030.0,0.22604]
[1757238104772,0.36939726,111040.0,111030.0,0.22604]
[1757238106809,0.18011527,111040.0,111030.0,0.22604]
[1757238107011,0.36939726,111040.0,111030.0,0.22604]
[1757238111402,0.37136726,111040.0,111030.0,0.22302]
[1757238112217,0.37450726,111040.0,111030.0,0.07314]
[1757238112417,0.37450726,111040.0,111030.0,0.22302]
[1757238112840,0.18522527,111040.0,111030.0,0.22302]
[1757238113037,0.37450726,111040.0,111030.0,0.07314]
[1757238113303,0.37450726,111040.0,111030.0,0.22104]
[1757238114164,0.38360839,111040.0,111030.0,0.22104]
[1757238114881,0.34733976,111040.0,111030.0,0.22104]
[1757238115439,0.34733976,111040.0,111030.0,0.22406]
[1757238116219,0.34733976,111040.0,111030.0,0.22612]
[1757238119195,0.18208527,111040.0,111030.0,0.22612]
[1757238119429,0.37136726,111040.0,111030.0,0.22612]
[1757238123304,0.3805064,111040.0,111030.0,0.22612]
[1757238123550,0.56987187,111040.0,111030.0,0.22612]
[1757238123795,0.56073273,111040.0,111030.0,0.22612]
[1757238126453,0.55876273,111040.0,111030.0,0.22612]
[1757238139336,0.55876273,111040.0,111030.0,0.22608]
[1757238140356,0.55876273,111040.0,111030.0,0.22408]
[1757238140563,0.55876273,111040.0,111030.0,0.15592]
[1757238141144,0.55876273,111040.0,111030.0,0.15492]
[1757238148156,0.58580344,111040.0,111030.0,0.15492]
[1757238155586,0.20715598,111040.0,111030.0,0.15492]
[1757238155790,0.58580344,111040.0,111030.0,0.15492]
[1757238158045,0.19634601,111040.0,111030.0,0.60015794]
[1757238158253,0.369439,111040.0,111030.0,0.5979063]
[1757238158667,0.369439,111040.0,111030.0,0.62494449]
[1757238159263,0.369439,111040.0,111030.0,0.62594449]
[1757238159670,0.369439,111040.0,111030.0,0.445813]
[1757238160679,0.369439,111040.0,111030.0,0.446813]
[1757238161901,0.369439,111040.0,111030.0,0.446773]
[1757238163698,0.369439,111040.0,111030.0,0.62690449]
[1757238164262,0.369439,111040.0,111030.0,0.446773]
[1757238164867,0.18011527,111040.0,111030.0,0.62690449]
[1757238165063,0.369439,111040.0,111030.0,0.62690449]
[1757238165267,0.369439,111040.0,111030.0,0.296973]
[1757238165404,0.369439,111040.0,111030.0,0.446773]
[1757238166302,0.369439,111040.0,111030.0,0.296973]
[1757238166506,0.55876273,111040.0,111030.0,0.446773]
[1757238167144,0.55876273,111040.0,111030.0,0.646773]
[1757238178010,0.18011527,111040.0,111030.0,0.646773]
[1757238178218,0.55876273,111040.0,111030.0,0.646773]
[1757238178414,0.369439,111040.0,111030.0,0.646773]
[1757238179195,0.369439,111040.0,111030.0,0.496973]
[1757238179416,0.55876273,111040.0,111030.0,0.646773]
[1757238181472,0.55876273,111040.0,111030.0,0.496973]
[1757238181793,0.58776093,111040.0,111030.0,0.59879599]
[1757238182394,0.58776093,111040.0,111030.0,0.59371599]
[1757238182599,0.58776093,111040.0,111030.0,0.59271599]
[1757238182801,0.58776093,111040.0,111030.0,0.59267599]
[1757238183032,0.58776093,111040.0,111030.0,0.49976]
[1757238183247,0.58776093,111040.0,111030.0,0.50076]
[1757238183603,0.3984408,111040.0,111030.0,0.50176]
[1757238183844,0.3984408,111040.0,111030.0,0.49976]
[1757238186085,0.21118828,111040.0,111030.0,0.49976]
[1757238186356,0.39130355,111040.0,111030.0,0.50293]
[1757238186538,0.39197355,111040.0,111030.0,0.50293]
[1757238186771,0.18013149,111030.0,111020.0,0.07233]
[1757238186974,0.36945882,111030.0,111020.0,0.22209]
[1757238187213,0.36945882,111030.0,111020.0,0.22421]
[1757238187532,0.39650175,111030.0,111020.0,0.22421]
[1757238188151,0.39650175,111030.0,111020.0,0.22521]
[1757238189608,0.39650175,111030.0,111020.0,0.22621]
[1757238197743,0.20717442,111030.0,111020.0,0.22621]
[1757238197929,0.39650175,111030.0,111020.0,0.22621]
[1757238198128,0.39650175,111030.0,111020.0,0.22625]
[1757238208312,0.21637026,111030.0,111020.0,0.22625]
[1757238208540,0.39650175,111030.0,111020.0,0.22625]
[1757238210546,0.39717175,111030.0,111020.0,0.07437]
[1757238210776,0.39717175,111030.0,111020.0,0.22413]
[1757238210993,0.39717175,111030.0,111020.0,0.22611]
[1757238211301,0.39650175,111030.0,111020.0,0.22611]
[1757238216363,0.20717442,111030.0,111020.0,0.22611]
[1757238216493,0.39650175,111030.0,111020.0,0.22611]
[1757238240559,0.39650175,111030.0,111020.0,0.07635]
[1757238240838,0.39650175,111030.0,111020.0,0.22607]
[1757238245469,0.39651491,111030.0,111020.0,0.22607]
[1757238251965,0.39651491,111030.0,111020.0,0.22603]
[1757238253524,0.17595269,111030.0,111020.0,0.22603]
[1757238253721,0.35608418,111030.0,111020.0,0.22603]
[1757238254084,0.38312711,111030.0,111020.0,0.22603]
[1757238255177,0.20717442,111030.0,111020.0,0.22603]
[1757238255392,0.39651491,111030.0,111020.0,0.22603]
[1757238262850,0.20717442,111030.0,111020.0,0.22603]
[1757238263057,0.39651491,111030.0,111020.0,0.22603]
[1757238268998,0.39651491,111030.0,111020.0,0.07635]
[1757238269204,0.39651491,111030.0,111020.0,0.22603]
[1757238270588,0.20717442,111030.0,111020.0,0.22603]
[1757238270788,0.39651491,111030.0,111020.0,0.22603]
[1757238280402,0.39651491,111030.0,111020.0,0.15687]
[1757238284376,0.40539499,111030.0,111020.0,0.15687]
[1757238285607,0.2160545,111030.0,111020.0,0.15687]
[1757238285812,0.40539499,111030.0,111020.0,0.15687]
[1757238286749,0.39651491,111030.0,111020.0,0.15687]
[1757238286957,0.20717442,111030.0,111020.0,0.15687]
[1757238287164,0.39651491,111030.0,111020.0,0.15687]
[1757238287921,0.40559088,111030.0,111020.0,0.15687]
[1757238290183,0.40559088,111030.0,111020.0,0.00719]
[1757238290410,0.40559088,111030.0,111020.0,0.15683]
[1757238290869,0.40559088,111030.0,111020.0,0.00719]
[1757238291075,0.40559088,111030.0,111020.0,0.15683]
[1757238295595,0.40626088,111030.0,111020.0,0.15683]
[1757238296207,0.40559088,111030.0,111020.0,0.00719]
[1757238296375,0.40559088,111030.0,111020.0,0.15683]
[1757238302548,0.59493137,111030.0,111020.0,0.15683]
[1757238305470,0.4055911,111030.0,111020.0,0.15683]
[1757238315079,0.4055911,111030.0,111020.0,0.15679]
[1757238315955,0.4055911,111030.0,111020.0,0.00719]
[1757238316410,0.4055911,111030.0,111020.0,0.15679]
[1757238318459,0.59493181,111030.0,111020.0,0.15679]
[1757238318869,0.4055911,111030.0,111020.0,0.15679]
[1757238324065,0.19724926,111030.0,111020.0,0.15679]
[1757238324256,0.40442368,111030.0,111020.0,0.15679]
[1757238346944,0.21508297,111030.0,111020.0,0.15679]
[1757238347131,0.40442368,111030.0,111020.0,0.15679]
[1757238349978,0.39651513,111030.0,111020.0,0.15679]
[1757238350581,0.40560857,111030.0,111020.0,0.15679]
[1757238356523,0.40560857,111030.0,111020.0,0.22595]
[1757238357318,0.59494928,111030.0,111020.0,0.22595]
[1757238358358,0.40560857,111030.0,111020.0,0.22595]
[1757238359842,0.59494928,111030.0,111020.0,0.22595]
[1757238365562,0.59495894,111030.0,111020.0,0.22595]
[1757238366187,0.59495894,111030.0,111020.0,0.15679]
[1757238367839,0.21626786,111030.0,111020.0,0.15679]
[1757238368047,0.59495894,111030.0,111020.0,0.15679]
[1757238370514,0.21626786,111030.0,111020.0,0.15679]
[1757238370733,0.59495894,111030.0,111020.0,0.15679]
[1757238372405,0.21626786,111030.0,111020.0,0.15679]
[1757238372613,0.59495894,111030.0,111020.0,0.15679]
[1757238372818,0.21626786,111030.0,111020.0,0.15679]
[1757238372947,0.59495894,111030.0,111020.0,0.15679]
[1757238374166,0.59495894,111030.0,111020.0,0.00719]
[1757238374372,0.59495894,111030.0,111020.0,0.00204]
[1757238374373,0.97250448,111030.0,111020.0,0.00204]
[1757238374585,0.82294448,111030.0,111020.0,0.00204]
[1757238374800,0.78315894,111030.0,111020.0,0.00204]
[1757238375393,0.78315894,111030.0,111020.0,4e-05]
[1757238375815,0.78815894,111030.0,111020.0,4e-05]
[1757238385859,0.40946786,111030.0,111020.0,4e-05]
[1757238386089,0.78815894,111030.0,111020.0,4e-05]
[1757238388884,0.78815894,111030.0,110980.0,0.2504]
[1757238388885,0.18018018,111000.0,110980.0,0.2504]
[1757238389133,0.18018018,111000.0,110960.0,0.65125092]
[1757238389134,0.52022889,110970.0,110960.0,0.65125092]
[1757238389379,0.18024513,110960.0,110950.0,0.01100069]
[1757238389611,0.18027762,110940.0,110930.0,0.01]
[1757238389830,0.90059424,110940.0,110930.0,0.01]
[1757238390061,0.90097424,110940.0,110930.0,0.01]
[1757238390290,0.74929424,110940.0,110930.0,0.01046418]
[1757238390515,0.92804422,110940.0,110930.0,0.01046418]
[1757238391200,0.2073476,110940.0,110930.0,0.01546418]
[1757238391480,0.56596916,110940.0,110930.0,0.01546418]
[1757238391887,0.56596916,110940.0,110930.0,0.16718418]
[1757238392589,0.56796916,110940.0,110930.0,0.16718418]
[1757238392813,0.18927808,110940.0,110930.0,0.25910017]
[1757238393038,0.18227762,110940.0,110930.0,0.29585017]
[1757238393502,0.37162316,110940.0,110930.0,0.29585017]
[1757238394511,0.18227762,110940.0,110930.0,0.29585017]
[1757238394724,0.37162316,110940.0,110930.0,0.29585017]
[1757238395096,0.36962316,110940.0,110930.0,0.29585017]
[1757238395729,0.36962316,110940.0,110930.0,0.29685017]
[1757238395930,0.36962316,110940.0,110930.0,0.29785017]
[1757238396127,0.18027762,110940.0,110930.0,0.29785017]
[1757238396332,0.18022889,110970.0,110940.0,0.18027762]
[1757238396534,0.18859722,110970.0,110960.0,0.00199]
[1757238396844,0.18859722,110970.0,110960.0,0.005]
[1757238396845,0.36957443,110970.0,110960.0,0.005]
[1757238397076,0.37854183,110970.0,110960.0,0.15668]
[1757238397214,0.29093953,110980.0,110960.0,0.15668]
[1757238397410,0.26388141,110980.0,110970.0,0.00298]
[1757238397640,0.64257249,110980.0,110970.0,0.00506]
[1757238398699,0.64257249,110980.0,110970.0,0.09969303]
[1757238399073,0.07465813,110980.0,110970.0,0.32137192]
[1757238399296,0.39659903,110990.0,110970.0,0.34617201]
[1757238399520,0.36954208,110990.0,110980.0,0.15172]
[1757238399749,0.18019641,110990.0,110980.0,0.16617599]
[1757238399981,0.36954195,110990.0,110980.0,0.31789599]
[1757238400564,0.36954195,110990.0,110980.0,0.56617599]
[1757238400804,0.18021265,110980.0,110970.0,0.15516418]
[1757238401009,0.55950373,110980.0,110970.0,0.00344418]
[1757238401216,0.18019641,110990.0,110970.0,0.24916017]
[1757238401417,0.18021265,110980.0,110970.0,0.24618017]
[1757238402110,0.18021265,110980.0,110970.0,0.24916017]
[1757238402283,0.36955819,110980.0,110970.0,0.24916017]
[1757238402735,0.36955819,110980.0,110970.0,0.09744017]
[1757238402985,0.36955819,110980.0,110970.0,0.09969303]
[1757238403200,0.36955819,110980.0,110970.0,0.24912017]
[1757238404131,0.18021265,110980.0,110970.0,0.24912017]
[1757238404390,0.36955819,110980.0,110970.0,0.24912017]
[1757238404593,0.37055819,110980.0,110970.0,0.24912017]
[1757238405166,0.55990373,110980.0,110970.0,0.24908017]
[1757238405570,0.37055819,110980.0,110970.0,0.24908017]
[1757238407926,0.56050373,110980.0,110970.0,0.15202418]
[1757238410687,0.56050373,110980.0,110970.0,0.15500418]
[1757238410908,0.18121265,110980.0,110970.0,0.15933704]
[1757238411131,0.18121265,110980.0,110970.0,0.25125303]
[1757238411347,0.37055819,110980.0,110970.0,0.24900017]
[1757238412535,0.18121265,110980.0,110970.0,0.24900017]
[1757238412741,0.37055819,110980.0,110970.0,0.24900017]
[1757238413793,0.36955819,110980.0,110970.0,0.24900017]
[1757238414418,0.36955819,110980.0,110970.0,0.25000017]
[1757238415008,0.36955819,110980.0,110970.0,0.24900017]
[1757238415510,0.18021265,110980.0,110970.0,0.24900017]
[1757238415863,0.36955819,110980.0,110970.0,0.24900017]
[1757238416072,0.36955819,110980.0,110970.0,0.25000017]
[1757238416280,0.18021265,110980.0,110970.0,0.25000017]
[1757238424128,0.18021265,110980.0,110970.0,0.43022906]
[1757238424538,0.18021265,110980.0,110970.0,0.25000017]
[1757238425309,0.18021265,110980.0,110970.0,0.47167906]
[1757238425523,0.18021265,110980.0,110970.0,0.29145017]
[1757238426789,0.18021265,110980.0,110970.0,0.69145017]
[1757238426996,0.18021265,110980.0,110970.0,0.87167906]
[1757238427176,0.18021265,110980.0,110970.0,0.69145017]
[1757238427586,0.18021265,110980.0,110970.0,0.29145017]
[1757238428943,0.18021265,110980.0,110970.0,0.29105017]
[1757238429159,0.18021265,110980.0,110970.0,0.24960017]
[1757238429791,0.18021265,110980.0,110970.0,0.24956017]
[1757238434262,0.18021265,110980.0,110970.0,0.64956017]
[1757238437065,0.18021265,110980.0,110970.0,0.24956017]
[1757238437474,0.18021265,110980.0,110970.0,0.64956017]
[1757238438135,0.18021265,110980.0,110970.0,0.24956017]
[1757238451618,0.18021265,110980.0,110970.0,0.29282017]
[1757238452592,0.18021265,110980.0,110970.0,0.69282017]
[1757238454834,0.18021265,110980.0,110970.0,0.76202017]
[1757238455460,0.18021265,110980.0,110970.0,0.36202017]
[1757238456090,0.18021265,110980.0,110970.0,0.76202017]
[1757238457846,0.18021265,110980.0,110970.0,0.58295899]
[1757238458277,0.18021265,110980.0,110970.0,0.98295899]
[1757238463390,0.18021265,110980.0,110970.0,0.58295899]
[1757238467295,0.18021265,110980.0,110970.0,0.98295899]
[1757238471529,0.3695824,110990.0,110970.0,0.98295899]
[1757238471731,0.3695824,110990.0,110980.0,0.24536599]
[1757238472145,0.3695824,110990.0,110980.0,0.24731599]
[1757238472358,0.3695824,110990.0,110980.0,0.24727599]
[1757238472963,0.3695824,110990.0,110980.0,0.25615718]
[1757238474345,0.3695824,110990.0,110980.0,0.24727599]
[1757238474699,0.36934723,110990.0,110980.0,0.24727599]
[1757238475018,0.1808903,110990.0,110980.0,0.24727599]
[1757238476241,0.37034723,110990.0,110980.0,0.24723599]
[1757238476463,0.37094723,110990.0,110980.0,0.24723599]
[1757238478591,0.37094723,110990.0,110980.0,0.09492599]
[1757238478733,0.37094723,110990.0,110980.0,0.24723599]
[1757238478932,0.37034723,110990.0,110980.0,0.24723599]
[1757238480977,0.1808903,110990.0,110980.0,0.24723599]
[1757238481216,0.37034723,110990.0,110980.0,0.24723599]
[1757238482371,0.37034723,110990.0,110980.0,0.09687599]
[1757238482616,0.1808903,110990.0,110980.0,0.24715599]
[1757238482856,0.37034723,110990.0,110980.0,0.09687599]
[1757238483290,0.37034723,110990.0,110980.0,0.24715599]
[1757238487624,0.37035313,110990.0,110980.0,0.24715599]
[1757238488791,0.1808903,110990.0,110980.0,0.24715599]
[1757238489001,0.37035313,110990.0,110980.0,0.24715599]
[1757238490029,0.37035313,110990.0,110980.0,0.09687599]
[1757238490236,0.37035313,110990.0,110980.0,0.24707599]
[1757238492246,0.1808903,110990.0,110980.0,0.24707599]
[1757238492405,0.37035313,110990.0,110980.0,0.24707599]
[1757238497006,0.37035313,110990.0,110980.0,0.09687599]
[1757238497184,0.37035313,110990.0,110980.0,0.24699599]
[1757238499283,0.1808903,110990.0,110980.0,0.24699599]
[1757238499489,0.37035313,110990.0,110980.0,0.24699599]
[1757238502187,0.001,110990.0,110980.0,0.30786481]
[1757238502414,0.18119641,110990.0,110980.0,0.30786481]
[1757238502954,0.18119641,110990.0,110980.0,0.48807746]
[1757238503378,0.001,110990.0,110980.0,0.48907746]
[1757238503600,0.001,110990.0,110980.0,1.22907746]
[1757238503778,0.001,110990.0,110980.0,1.22807746]
[1757238504151,0.001,110990.0,110980.0,1.22907746]
[1757238504564,0.37869579,111000.0,110980.0,1.22907746]
[1757238504799,0.37869579,111000.0,110990.0,0.00547245]
[1757238504992,0.37869579,111000.0,110990.0,0.09944844]
[1757238506033,0.16805777,111000.0,110990.0,0.09944844]
[1757238506235,0.34925273,111000.0,110990.0,0.09944844]
[1757238506814,0.35826173,111000.0,110990.0,0.09944844]
[1757238508854,0.35826173,111000.0,110990.0,0.27653641]
[1757238509055,0.35826173,111000.0,110990.0,0.27428396]
[1757238510316,0.19020396,111000.0,110990.0,0.27428396]
[1757238510485,0.37966679,111000.0,110990.0,0.27428396]
[1757238510889,0.19020396,111000.0,110990.0,0.27428396]
[1757238511198,0.37966679,111000.0,110990.0,0.27428396]
[1757238511722,0.37966679,111000.0,110990.0,0.24723599]
[1757238512076,0.37966679,111000.0,110990.0,0.09719599]
[1757238512278,0.37966679,111000.0,110990.0,0.24715599]
[1757238515977,0.19020396,111000.0,110990.0,0.24715599]
[1757238516192,0.37966679,111000.0,110990.0,0.24715599]
[1757238517934,0.19020396,111000.0,110990.0,0.24715599]
[1757238518352,0.37966679,111000.0,110990.0,0.24715599]
[1757238519162,0.19020396,111000.0,110990.0,0.24715599]
[1757238519370,0.37966679,111000.0,110990.0,0.24715599]
[1757238522247,0.19020396,111000.0,110990.0,0.24715599]
[1757238522443,0.37966679,111000.0,110990.0,0.24715599]
[1757238523819,0.37966679,111000.0,110990.0,0.31635599]
[1757238524515,0.37966679,111000.0,110990.0,0.16639599]
[1757238524730,0.37966679,111000.0,110990.0,0.31635599]
[1757238526391,0.56972962,111000.0,110990.0,0.0692]
[1757238526599,0.56972962,111000.0,110990.0,0.21916]
[1757238526729,0.56972962,111000.0,110990.0,0.22211]
[1757238527158,0.59678035,111000.0,110990.0,0.22422]
[1757238536891,0.37966679,111000.0,110990.0,0.31613599]
[1757238544179,0.19020396,111000.0,110990.0,0.31613599]
[1757238544436,0.37966679,111000.0,110990.0,0.31613599]
[1757238549430,0.37963159,111000.0,110990.0,0.31613599]
[1757238551301,0.19020396,111000.0,110990.0,0.31613599]
[1757238561711,0.37963159,111000.0,110990.0,0.31613599]
[1757238567493,0.19020396,111000.0,110990.0,0.31613599]
[1757238567695,0.37963159,111000.0,110990.0,0.31613599]
[1757238569132,0.19020396,111000.0,110990.0,0.31613599]
[1757238569363,0.37963159,111000.0,110990.0,0.31613599]
[1757238570404,0.19020396,111000.0,110990.0,0.31613599]
[1757238580162,0.37963159,111000.0,110990.0,0.31613599]
[1757238582290,0.17286008,111000.0,110990.0,0.31613599]
[1757238582463,0.35305504,111000.0,110990.0,0.31613599]
[1757238582669,0.36206404,111000.0,110990.0,0.31613599]
[1757238584255,0.37863159,111000.0,110990.0,0.31613599]
[1757238584638,0.18920396,111000.0,110990.0,0.31613599]
[1757238584843,0.37863159,111000.0,110990.0,0.31613599]
[1757238595055,0.18920396,111000.0,110990.0,0.31613599]
[1757238597386,0.21625186,111000.0,110990.0,0.31613599]
[1757238602360,0.21625186,111000.0,110990.0,0.31605599]
[1757238608267,0.21625186,111000.0,110990.0,0.31605599]
[1757238611651,0.18923217,111010.0,110990.0,0.68699481]
[1757238611869,0.21627919,111010.0,111000.0,0.09717824]
[1757238612108,0.21627919,111010.0,111000.0,0.09930824]
[1757238612332,0.02704702,111010.0,111000.0,0.30042724]
[1757238612547,0.1802535,111020.0,111010.0,0.2]
[1757238612766,0.1802535,111020.0,111010.0,0.61486481]
[1757238612978,0.1802535,111020.0,111010.0,0.61787481]
[1757238613867,0.1802535,111020.0,111010.0,0.61833899]
[1757238614085,0.1802535,111020.0,111010.0,0.64638191]
[1757238614508,0.1802535,111020.0,111010.0,0.65538209]
[1757238615424,0.1802535,111020.0,111010.0,0.65638209]
[1757238616041,0.1802535,111020.0,111010.0,1.05638209]
[1757238616300,0.1802535,111020.0,111010.0,1.43654603]
[1757238616511,0.1802535,111020.0,111010.0,1.47823603]
[1757238616730,0.1802535,111020.0,111010.0,1.29807209]
[1757238617599,0.1802535,111020.0,111010.0,1.47823603]
[1757238617833,0.18923325,111030.0,111010.0,1.32835603]
[1757238618050,0.18923325,111030.0,111020.0,0.18731665]
[1757238618269,0.18923325,111030.0,111020.0,0.18719481]
[1757238618481,0.18919989,111040.0,111030.0,0.2]
[1757238618667,0.18919989,111040.0,111030.0,0.29705599]
[1757238618884,0.3786158,111040.0,111030.0,0.44689599]
[1757238619996,0.3806158,111040.0,111030.0,0.44689599]
[1757238620595,0.3816158,111040.0,111030.0,0.44689599]
[1757238621064,0.3816158,111040.0,111030.0,0.29705599]
[1757238621286,0.3816158,111040.0,111030.0,0.44689599]
[1757238621464,0.57103171,111040.0,111030.0,0.44689599]
[1757238622071,0.56903171,111040.0,111030.0,0.44689599]
[1757238622873,0.56803171,111040.0,111030.0,0.44689599]
[1757238623104,0.3786158,111040.0,111030.0,0.44689599]
[1757238624321,0.18919989,111040.0,111030.0,0.44689599]
[1757238624535,0.3786158,111040.0,111030.0,0.44689599]
[1757238628730,0.3786158,111040.0,111030.0,0.29705599]
[1757238628957,0.56863171,111040.0,111030.0,0.44175599]
[1757238629387,0.56863171,111040.0,111030.0,0.44476599]
[1757238629645,0.56863171,111040.0,111030.0,0.29705599]
[1757238629893,0.56863171,111040.0,111030.0,0.44689599]
[1757238630297,0.56803171,111040.0,111030.0,0.44689599]
[1757238633519,0.18919989,111040.0,111030.0,0.44689599]
[1757238633882,0.56803171,111040.0,111030.0,0.44689599]
[1757238634817,0.56803171,111040.0,111030.0,0.44685599]
[1757238639056,0.56863171,111040.0,111030.0,0.44685599]
[1757238640368,0.56803171,111040.0,111030.0,0.44685599]
[1757238644659,0.18919989,111040.0,111030.0,0.44685599]
[1757238644873,0.56803171,111040.0,111030.0,0.44685599]
[1757238645409,0.75842762,111040.0,111030.0,0.2]
[1757238645625,0.75842762,111040.0,111030.0,0.3498]
[1757238646217,0.78546989,111040.0,111030.0,0.3498]